bitfinex/quotes_ETHUSD_20240828
["timestamp","ask_amount","ask_price","bid_price","bid_amount"]
[1724826262186,2.4997,2473.6,2472.9,2.3429]
[1724826262391,2.4997,2473.6,2473.0,0.08085778]
[1724826262690,2.4249,2473.8,2473.0,0.08085778]
[1724826265571,4.17743834,2474.3,2473.6,0.55]
[1724826266066,4.07639541,2474.3,2473.7,0.08083172]
[1724826266269,4.07639541,2474.3,2473.8,0.55]
[1724826266574,2.4165,2474.4,2473.8,0.55]
[1724826266732,2.4165,2474.4,2473.9,0.14102831]
[1724826267343,2.51754294,2474.4,2473.9,0.14102831]
[1724826267750,2.4165,2474.4,2473.9,0.14102831]
[1724826267953,2.4165,2474.4,2473.9,0.44213114]
[1724826268272,4.07639541,2474.7,2473.9,0.44213114]
[1724826268273,2.48674286,2474.6,2473.9,0.44213114]
[1724826268432,4.07639541,2474.5,2474.0,0.55]
[1724826268770,4.07639541,2474.5,2474.1,0.08081913]
[1724826269080,4.07639541,2474.5,2474.1,0.14101593]
[1724826269268,4.07639541,2474.5,2474.1,0.0601968]
[1724826269469,4.73270843,2474.5,2474.1,0.0601968]
[1724826270545,4.07639541,2474.5,2474.1,0.0601968]
[1724826270875,4.17743024,2474.5,2474.1,0.0601968]
[1724826271058,4.07639541,2474.5,2474.1,0.0601968]
[1724826272159,2.3857,2474.6,2474.1,0.14100892]
[1724826272367,2.3857,2474.6,2474.2,0.55]
[1724826272548,2.3857,2474.6,2474.2,0.6110233]
[1724826274309,4.17742634,2474.5,2474.2,0.0610233]
[1724826274605,6.43209541,2474.3,2473.7,7.37]
[1724826274804,6.43209541,2474.3,2473.8,0.55]
[1724826278975,6.43209541,2474.3,2473.3,16.46315]
[1724826278976,4.07639541,2474.1,2473.3,19.79]
[1724826279283,4.07639541,2474.1,2473.3,7.37]
[1724826279477,4.17745417,2474.1,2473.3,7.37]
[1724826279686,4.17745417,2474.1,2473.4,0.97814]
[1724826279903,2.3146,2474.0,2473.4,0.97814]
[1724826280117,4.17745522,2473.9,2473.3,7.37]
[1724826280269,4.07639541,2473.7,2473.3,7.37]
[1724826280482,4.17746402,2473.7,2473.3,7.37]
[1724826281007,4.17746402,2473.7,2473.4,0.06055982]
[1724826281472,4.07639541,2473.7,2473.4,0.06055982]
[1724826281677,2.3146,2473.8,2473.4,0.06055982]
[1724826281978,2.41566862,2473.8,2473.4,0.06055982]
[1724826282887,2.41566862,2473.8,2473.5,0.06055982]
[1724826283079,2.3146,2473.8,2473.5,0.06055982]
[1724826283411,2.2533,2474.0,2473.6,0.06055982]
[1724826283612,4.0,2473.7,2473.6,0.06055982]
[1724826283817,4.0,2473.7,2473.4,0.0808477]
[1724826284113,4.0,2473.7,2473.5,0.55]
[1724826286447,2.35436151,2474.0,2473.5,0.61055982]
[1724826291756,2.2533,2474.0,2473.5,0.69140762]
[1724826291912,2.2533,2474.0,2473.5,1.03269386]
[1724826292107,2.3543592,2474.0,2473.5,0.69140762]
[1724826292859,2.3543592,2474.0,2473.5,0.61055982]
[1724826294001,4.49937324,2474.1,2473.6,0.08084714]
[1724826294206,2.4436,2474.2,2473.6,0.08084714]
[1724826294207,2.4436,2474.2,2473.7,2.935]
[1724826294444,2.4436,2474.2,2473.8,0.38242272]
[1724826294813,2.4436,2474.2,2473.9,0.06197551]
[1724826296345,2.54464752,2474.2,2473.9,0.06197551]
[1724826296769,2.54464752,2474.2,2473.7,0.55]
[1724826296975,2.54464752,2474.2,2473.8,0.06177503]
[1724826297147,2.54464752,2474.2,2473.6,1.917429]
[1724826297362,4.07639541,2474.1,2473.7,0.06177503]
[1724826297567,4.07639541,2474.1,2473.8,0.55]
[1724826297870,4.07639541,2474.1,2473.9,0.06169985]
[1724826298389,4.72839495,2474.1,2473.9,0.06169985]
[1724826298979,4.82944262,2474.1,2473.9,0.06169985]
[1724826299176,4.82944262,2474.1,2473.4,7.37]
[1724826299468,6.46249541,2473.9,2473.5,0.06171238]
[1724826302695,0.10106208,2473.8,2473.5,0.06171238]
[1724826303292,6.56356343,2473.9,2473.5,0.06171238]
[1724826304161,6.46249541,2473.9,2473.5,0.06171238]
[1724826305554,6.98509495,2474.1,2473.5,2.34871238]
[1724826305753,6.33309541,2474.1,2473.5,3.32058362]
[1724826306289,6.33309541,2474.1,2473.5,2.34871238]
[1724826307573,6.33309541,2474.1,2473.5,0.06171238]
[1724826307777,4.07639541,2473.9,2473.3,2.4261]
[1724826308052,0.1010639,2473.8,2473.4,0.61142545]
[1724826308488,2.5764639,2473.8,2473.4,0.61142545]
[1724826308787,4.1774614,2473.7,2473.4,0.06142545]
[1724826309173,4.1774614,2473.7,2473.1,9.7961]
[1724826309383,4.1774614,2473.7,2473.2,0.55]
[1724826309750,4.1774614,2473.7,2473.3,0.06146306]
[1724826309956,4.1774614,2473.7,2473.2,0.55]
[1724826310156,4.1774614,2473.7,2473.3,0.06146306]
[1724826310356,4.1774614,2473.7,2473.2,1.48291121]
[1724826310607,4.1774614,2473.7,2473.3,0.06150066]
[1724826310816,4.1774614,2473.7,2473.2,1.48291121]
[1724826311007,4.1774614,2473.7,2473.3,0.06150066]
[1724826311341,4.1774614,2473.7,2473.2,1.48291121]
[1724826311539,4.1774614,2473.7,2473.4,0.06150066]
[1724826311703,4.1774614,2473.7,2473.2,0.55]
[1724826311908,4.1774614,2473.7,2473.5,0.06150066]
[1724826312121,4.1774614,2473.7,2473.2,0.55]
[1724826312442,4.1774614,2473.7,2473.2,1.51440352]
[1724826312649,4.1774614,2473.7,2473.3,0.06150066]
[1724826313117,4.1774614,2473.7,2473.2,1.51440352]
[1724826313317,4.1774614,2473.7,2473.4,0.06150066]
[1724826313502,4.1774614,2473.7,2473.2,1.51440352]
[1724826313709,4.1774614,2473.7,2473.5,0.06150066]
[1724826313945,4.1774614,2473.7,2473.2,0.55]
[1724826314247,4.1774614,2473.7,2473.2,1.58461]
[1724826314749,4.07639541,2473.7,2473.3,0.06150066]
[1724826315113,4.07639541,2473.7,2473.2,1.58461]
[1724826315644,4.07639541,2473.7,2473.3,0.06150066]
[1724826315849,0.10106877,2474.0,2473.3,1.28657674]
[1724826315850,6.43106418,2474.0,2473.3,1.28657674]
[1724826316053,0.42298783,2474.1,2473.4,2.9727]
[1724826316356,0.52404583,2474.1,2473.5,0.0808464]
[1724826316647,6.34039541,2474.4,2473.7,2.4659]
[1724826316854,0.10104785,2474.3,2473.8,0.93855954]
[1724826317067,0.10104785,2474.3,2473.8,0.61130012]
[1724826317220,4.07639541,2474.2,2473.8,0.61130012]
[1724826321358,4.07639541,2474.2,2473.8,0.69213842]
[1724826323171,4.07639541,2474.2,2473.8,0.61130012]
[1724826323324,0.1010479,2474.1,2473.8,0.06130012]
[1724826323531,4.07639541,2474.0,2473.8,0.06130012]
[1724826323745,4.07639541,2474.0,2473.5,9.63]
[1724826323945,4.07639541,2474.2,2473.9,0.06054821]
[1724826324253,4.07639541,2474.4,2474.0,0.06054821]
[1724826324563,4.17744146,2474.4,2474.0,0.06054821]
[1724826324763,4.17744146,2474.4,2473.8,0.08083684]
[1724826325076,0.4229575,2474.5,2474.0,2.4291]
[1724826325368,2.44743391,2474.7,2474.1,0.55]
[1724826325572,4.07639541,2474.6,2474.1,0.61048556]
[1724826325727,4.07639541,2474.6,2474.1,1.31864312]
[1724826326360,4.07639541,2474.4,2474.1,0.06048556]
[1724826327255,4.07639541,2474.2,2474.1,0.06048556]
[1724826327457,4.72689872,2474.2,2474.1,0.06048556]
[1724826327649,4.07639541,2474.2,2474.1,0.06015983]
[1724826328167,4.07639541,2474.2,2473.6,2.3792]
[1724826328367,2.3276,2474.3,2474.1,0.06015983]
[1724826328537,4.17744257,2474.2,2473.7,0.55]
[1724826328736,4.17744257,2474.2,2473.7,1.57992]
[1724826329393,4.17744257,2474.2,2473.6,2.3792]
[1724826329394,4.07639541,2473.9,2473.5,7.37]
[1724826329594,6.40359541,2473.9,2473.6,0.55]
[1724826329892,6.40359541,2473.9,2473.6,0.30048]
[1724826330303,4.1774544,2473.8,2473.1,2.4548]
[1724826330588,4.07639541,2473.6,2473.1,2.4548]
[1724826330792,4.1774544,2473.8,2473.2,0.08085512]
[1724826330981,4.1774544,2473.8,2473.2,0.73878563]
[1724826331760,4.1774544,2473.8,2473.3,0.55]
[1724826333857,4.1774544,2473.8,2473.3,0.63085511]
[1724826336065,4.07639541,2474.0,2473.3,4.67399511]
[1724826336266,4.07639541,2474.0,2473.5,2.2547]
[1724826336489,2.38646025,2474.1,2473.6,0.63084497]
[1724826337499,2.2854,2474.1,2473.6,0.63084497]
[1724826340989,4.07639541,2474.0,2473.7,0.060022]
[1724826344713,4.17744672,2474.0,2473.7,0.060022]
[1724826345076,4.17744672,2474.0,2473.4,7.90319256]
[1724826345404,4.17744672,2474.0,2473.5,1.58485926]
[1724826345709,4.17744672,2474.0,2473.6,0.06028513]
[1724826346272,2.2854,2474.1,2473.6,0.06028513]
[1724826347715,0.10105762,2474.0,2473.6,0.06028513]
[1724826349003,4.17745303,2474.0,2473.6,0.06028513]
[1724826349408,2.3313,2473.9,2473.6,0.06028513]
[1724826349579,0.10106462,2473.8,2473.4,7.37]
[1724826349982,0.10106462,2473.8,2473.5,0.06082387]
[1724826350921,4.17746003,2473.8,2473.5,0.06082387]
[1724826351205,2.3813,2473.6,2473.5,0.06082387]
[1724826351513,6.45769541,2473.6,2472.7,2.2594]
[1724826351683,2.3342,2473.2,2472.4,2.4815]
[1724826351895,4.07639541,2473.1,2472.4,3.0983304]
[1724826352104,4.07639541,2473.1,2472.5,1.11877104]
[1724826352320,2.3342,2473.2,2472.5,1.11877104]
[1724826352635,2.43529117,2473.2,2472.5,1.11877104]
[1724826352844,2.43529117,2473.2,2472.5,5.16325104]
[1724826353284,2.43529117,2473.2,2472.6,0.55]
[1724826353482,2.43529117,2473.2,2472.7,0.5713251]
[1724826354108,4.07639541,2473.3,2472.7,0.5713251]
[1724826354317,0.10108335,2473.4,2472.8,2.8585]
[1724826354614,0.10108335,2473.4,2472.9,0.74739551]
[1724826354816,2.2785,2473.5,2472.9,0.74739551]
[1724826355029,0.10108088,2473.4,2473.0,0.63086664]
[1724826355183,4.0,2473.1,2473.0,0.99954286]
[1724826355384,4.07639541,2473.5,2473.0,0.55]
[1724826355687,0.10108088,2473.4,2472.9,0.6308647]
[1724826355913,0.10108088,2473.4,2473.0,0.29393647]
[1724826356099,0.10108088,2473.4,2473.0,0.35175394]
[1724826356810,4.07639541,2473.5,2473.0,0.35175394]
[1724826357005,4.07639541,2473.5,2473.1,0.63086435]
[1724826359388,0.10107543,2473.6,2473.2,0.05755435]
[1724826360633,4.07639541,2473.5,2473.2,0.05755435]
[1724826360932,0.10107561,2473.4,2473.2,0.05755435]
[1724826361300,0.10107561,2473.4,2472.8,9.6785]
[1724826361494,0.10107561,2473.4,2473.3,0.05746665]
[1724826361727,0.10107561,2473.4,2472.9,0.55]
[1724826361928,0.10107561,2473.4,2473.3,0.05746665]
[1724826362127,0.51882271,2473.4,2472.8,9.6785]
[1724826362328,0.10107561,2473.4,2473.3,0.05782994]
[1724826362501,0.10107561,2473.4,2472.8,9.6785]
[1724826362700,0.10107561,2473.4,2473.3,0.05782994]
[1724826363031,0.1010871,2473.6,2473.3,0.05793016]
[1724826363239,0.79387784,2473.6,2472.8,9.6785]
[1724826363538,0.79387784,2473.6,2472.9,0.05793016]
[1724826364131,2.3328,2473.5,2472.9,0.05793016]
[1724826364430,0.10109108,2473.4,2472.9,0.05793016]
[1724826365131,2.3314,2473.3,2472.9,0.05793016]
[1724826365341,0.10109098,2473.2,2472.9,0.05793016]
[1724826366108,0.10109098,2473.2,2472.5,13.72448]
[1724826366330,0.10109098,2473.2,2473.0,0.05791764]
[1724826366514,0.10109098,2473.2,2472.6,0.55]
[1724826366836,0.10109098,2473.2,2472.7,1.427448]
[1724826367039,0.10109098,2473.2,2472.8,0.05791764]
[1724826367194,0.10109098,2473.2,2472.7,1.427448]
[1724826367537,0.10109098,2473.2,2472.8,0.05791764]
[1724826368029,2.3314,2473.1,2472.6,0.55]
[1724826368335,0.10109542,2473.0,2472.6,0.55]
[1724826368538,0.10109542,2473.0,2472.7,0.05791764]
[1724826369344,0.1010954,2473.2,2472.7,0.05791764]
[1724826369631,0.1010954,2473.2,2472.7,0.86379704]
[1724826370133,4.07639541,2473.5,2472.8,2.34227294]
[1724826370134,0.10109118,2473.4,2472.8,2.34227294]
[1724826370798,0.10109118,2473.4,2472.9,0.05806799]
[1724826371209,0.10109118,2473.4,2472.9,0.37869002]
[1724826373435,4.07639541,2473.6,2472.9,0.05806799]
[1724826373436,6.40029541,2473.0,2472.9,0.05806799]
[1724826373606,6.40029541,2473.0,2472.1,7.37]
[1724826373796,0.74114505,2472.9,2472.1,7.37]
[1724826373997,0.74114505,2472.9,2472.2,0.08089041]
[1724826374248,6.40029541,2473.0,2472.2,0.12937236]
[1724826374417,2.56700706,2473.2,2472.4,4.04464]
[1724826374625,4.07639541,2473.0,2472.5,0.0470048]
[1724826374921,0.42285769,2473.3,2472.1,7.37]
[1724826374922,2.4514,2472.7,2472.1,7.37]
[1724826375155,2.4514,2472.7,2472.6,0.0470048]
[1724826375456,2.55250904,2472.7,2472.1,7.37]
[1724826375605,2.3283,2473.0,2472.6,0.0470048]
[1724826375806,2.3283,2473.0,2472.1,7.37]
[1724826376004,2.3283,2473.0,2472.2,0.08088805]
[1724826376206,2.3283,2473.0,2472.3,2.3201048]
[1724826376406,0.42285769,2473.3,2472.5,4.04446]
[1724826376702,0.42285769,2473.3,2472.7,2.2731]
[1724826376907,0.42285769,2473.3,2472.8,0.08087002]
[1724826377251,2.3628,2473.7,2472.9,0.04721772]
[1724826377546,0.10107932,2473.6,2472.9,0.12808118]
[1724826377850,0.74499886,2473.6,2472.9,0.12808118]
[1724826379746,0.64391954,2473.6,2472.9,0.12808118]
[1724826379919,2.88667252,2473.7,2473.0,0.55]
[1724826380253,2.88667252,2473.7,2473.1,0.08086087]
[1724826380425,2.88667252,2473.7,2473.2,0.04721772]
[1724826380757,2.88667252,2473.7,2473.0,0.55]
[1724826381040,3.58297931,2473.7,2472.9,0.55]
[1724826381240,2.88667252,2473.7,2472.9,0.55]
[1724826381447,2.88667252,2473.7,2473.0,0.04721772]
[1724826381653,2.88667252,2473.7,2473.1,0.55]
[1724826382025,2.88667252,2473.7,2473.2,0.04721772]
[1724826382322,0.1010735,2474.1,2473.3,0.55]
[1724826382527,0.52383767,2474.1,2473.4,0.08084969]
[1724826382835,0.52383767,2474.1,2473.5,0.0464914]
[1724826387353,4.07639541,2474.0,2473.5,0.0464914]
[1724826387654,4.07639541,2473.8,2473.2,7.92]
[1724826387810,2.4413,2473.5,2473.2,7.37]
[1724826388012,2.54238024,2473.5,2473.3,0.04576529]
[1724826388251,2.54238024,2473.5,2473.2,7.37]
[1724826388545,3.2042578,2473.5,2473.3,0.04576529]
[1724826389046,3.2042578,2473.5,2473.4,0.04576529]
[1724826389253,3.2042578,2473.5,2473.2,7.37]
[1724826389254,2.54238024,2473.5,2473.2,7.37]
[1724826389410,2.54238024,2473.5,2473.3,0.04599061]
[1724826389724,2.54238024,2473.5,2473.2,7.37]
[1724826389919,2.54238024,2473.5,2473.4,0.04599061]
[1724826390115,3.2042578,2473.5,2473.2,7.37]
[1724826390657,3.2042578,2473.5,2473.3,0.04599061]
[1724826390839,3.2042578,2473.5,2473.2,7.37]
[1724826391154,3.2042578,2473.5,2473.3,0.04599061]
[1724826391335,4.80446073,2473.4,2473.3,0.04599061]
[1724826391650,4.17747657,2473.4,2473.2,7.37]
[1724826391832,4.17747657,2473.4,2473.3,0.04447846]
[1724826392035,4.17747657,2473.4,2472.5,7.37]
[1724826392262,4.17747657,2473.4,2472.6,0.04466626]
[1724826392911,2.4203,2473.3,2472.6,0.04466626]
[1724826393111,0.1010962,2473.2,2472.6,0.04466626]
[1724826393314,4.17749161,2473.2,2472.6,0.04466626]
[1724826393615,2.4318,2473.1,2472.2,2.4299]
[1724826393848,0.10110347,2473.0,2472.7,0.04466626]
[1724826394056,0.10110347,2473.0,2472.8,0.04507951]
[1724826394241,0.80380827,2473.0,2472.2,3.871421]
[1724826394442,0.80380827,2473.0,2472.3,0.04507951]
[1724826394641,0.80380827,2473.0,2472.3,0.59507951]
[1724826394960,0.10110347,2473.0,2472.3,0.59507951]
[1724826395121,0.10110347,2473.0,2472.4,0.08088225]
[1724826395742,0.10110347,2473.0,2472.5,0.04507951]
[1724826396652,0.10110347,2473.0,2472.3,0.55]
[1724826396858,0.10110347,2473.0,2472.4,0.04507951]
[1724826397560,0.10110347,2473.0,2472.4,0.57261233]
[1724826397735,0.10110347,2473.0,2472.4,0.49172956]
[1724826397942,4.07639541,2473.0,2472.4,0.49172956]
[1724826398272,0.06056805,2472.9,2472.4,0.04507951]
[1724826399325,0.06056805,2473.1,2472.4,0.04507951]
[1724826400362,4.07639541,2473.0,2472.4,0.04507951]
[1724826400600,0.06056805,2472.9,2472.4,0.04507951]
[1724826400861,2.363,2472.8,2472.4,0.04507951]
[1724826401535,0.06056805,2472.7,2472.4,0.04507951]
[1724826401870,0.06056805,2472.7,2472.2,0.55]
[1724826402040,2.3823,2472.5,2471.9,2.3762]
[1724826402227,0.06056805,2472.4,2471.7,9.8389]
[1724826402427,0.06056805,2472.4,2471.8,0.04485656]
[1724826402745,2.3661,2473.0,2472.0,2.4689]
[1724826402945,0.06056805,2472.9,2472.1,0.08088541]
[1724826403365,6.44249541,2472.8,2472.2,0.04485656]
[1724826403667,0.06056805,2472.7,2472.1,0.98389]
[1724826404083,0.06056805,2472.7,2472.2,0.04485656]
[1724826404256,0.06056805,2472.7,2472.2,1.13162122]
[1724826405599,2.2831,2472.6,2472.2,1.13162122]
[1724826405893,0.06056805,2472.5,2472.2,0.04485656]
[1724826406093,0.06056805,2472.5,2472.0,7.37]
[1724826406290,0.06056805,2472.5,2472.1,0.04485656]
[1724826411476,7.99164277,2473.3,2472.1,0.04485656]
[1724826411477,2.4467,2473.1,2472.4,4.07639541]
[1724826411682,2.4467,2473.1,2472.2,2.3514]
[1724826411683,2.4467,2473.1,2472.5,0.63087932]
[1724826411887,2.4467,2473.1,2472.6,0.04485656]
[1724826412757,2.79648953,2473.3,2472.6,2.42033624]
[1724826412961,2.79648953,2473.3,2472.7,0.84703362]
[1724826413158,2.79648953,2473.3,2472.8,0.08087152]
[1724826413461,2.79648953,2473.3,2472.9,0.04485656]
[1724826413896,2.79648953,2473.3,2472.7,0.84703362]
[1724826414101,2.79648953,2473.3,2472.8,0.35901992]
[1724826415300,2.436,2473.1,2472.8,0.04485656]
[1724826415457,2.436,2473.1,2472.4,2.2814]
[1724826415458,0.06056805,2473.0,2472.4,2.2814]
[1724826415668,0.06056805,2473.0,2472.5,0.59485656]
[1724826415871,0.06056805,2473.0,2472.6,0.28762566]
[1724826416113,0.06056805,2473.0,2472.5,0.55]
[1724826416273,0.06056805,2473.0,2472.2,14.7014]
[1724826416274,0.06056805,2473.0,2472.6,0.04485656]
[1724826416474,0.06056805,2473.0,2472.4,0.55]
[1724826416676,0.06056805,2473.0,2472.5,0.83685656]
[1724826419637,2.4187,2472.9,2472.5,0.04485656]
[1724826419810,0.06056805,2472.8,2472.5,0.04485656]
[1724826421196,2.47926805,2472.9,2472.5,0.04485656]
[1724826422409,2.4187,2472.9,2472.5,0.04485656]
[1724826422800,4.0,2472.7,2472.5,0.04485656]
[1724826427158,2.36226805,2472.6,2472.5,0.04485656]
[1724826427448,2.76832485,2472.6,2472.0,2.4156]
[1724826427614,2.36226805,2472.6,2472.5,0.04461869]
[1724826427810,2.36226805,2472.6,2472.0,2.4156]
[1724826428014,2.36226805,2472.6,2472.5,0.04461869]
[1724826428319,2.3017,2472.6,2472.5,0.04461869]
[1724826428539,4.0,2472.7,2472.4,0.08088949]
[1724826428749,4.0,2472.6,2472.5,0.59461869]
[1724826429056,4.0,2472.6,2472.5,2.11577351]
[1724826429552,0.06056805,2473.0,2472.5,2.11577351]
[1724826429718,2.3017,2473.1,2472.5,2.11577351]
[1724826429719,2.36226805,2473.1,2472.5,2.11577351]
[1724826430715,2.3017,2473.1,2472.5,2.11577351]
[1724826430921,0.06056805,2473.0,2472.5,0.59461869]
[1724826431127,6.37809541,2472.9,2472.5,0.04461869]
[1724826431455,2.3017,2472.6,2472.3,7.37]
[1724826431820,2.3017,2472.6,2472.4,0.04453106]
[1724826432016,0.06056805,2472.8,2472.4,0.78598417]
[1724826432558,2.47076805,2472.9,2472.4,0.78598417]
[1724826433630,2.4102,2472.9,2472.4,0.78598417]
[1724826434042,2.4102,2472.9,2472.4,0.86686776]
[1724826434229,2.4102,2472.9,2472.5,1.45442778]
[1724826434652,2.4102,2473.1,2472.6,0.04473137]
[1724826434851,4.0,2472.7,2472.6,0.04473137]
[1724826435051,4.0,2472.7,2472.6,0.6732516]
[1724826435255,4.0,2472.7,2472.6,0.04473137]
[1724826435938,0.06056805,2473.0,2472.6,0.04473137]
[1724826437719,2.47076805,2473.1,2472.6,0.04473137]
[1724826437944,2.47076805,2473.1,2472.6,4.71991124]
[1724826437945,2.4102,2473.1,2472.6,4.71991124]
[1724826438178,2.78677569,2473.3,2472.7,0.6174339]
[1724826438322,2.3639,2473.3,2472.7,4.74244597]
[1724826438647,2.3639,2473.3,2472.8,0.53371773]
[1724826438853,4.0,2472.9,2472.8,0.65932117]
[1724826439053,4.0,2472.9,2472.8,0.56986833]
[1724826439540,2.3639,2473.3,2472.8,0.56986833]
[1724826439735,2.3639,2473.3,2472.8,0.65074001]
[1724826440765,2.69486869,2473.5,2472.9,0.53123139]
[1724826441065,2.75543674,2473.5,2473.0,0.63086422]
[1724826441622,2.75543674,2473.5,2473.1,0.04418055]
[1724826441859,4.0,2473.2,2473.1,0.04418055]
[1724826444178,6.4274,2473.2,2473.1,0.04418055]
[1724826444379,6.8334568,2473.2,2472.5,4.04438]
[1724826444678,6.4274,2473.2,2473.1,0.04385513]
[1724826444878,6.4274,2473.2,2472.7,0.55]
[1724826445098,6.4274,2473.2,2473.1,0.04385513]
[1724826445379,6.4274,2473.2,2472.7,0.55]
[1724826445585,0.06056805,2473.1,2472.6,0.55]
[1724826445984,0.06056805,2473.1,2472.7,0.04385513]
[1724826446781,4.0,2473.0,2472.7,0.04385513]
[1724826447488,4.0,2473.0,2472.7,0.5885528]
[1724826448161,2.4274,2473.2,2472.7,0.5885528]
[1724826449482,2.4274,2473.2,2472.7,0.04385513]
[1724826449653,2.48796805,2473.2,2472.7,0.04385513]
[1724826449843,2.4274,2473.2,2472.7,0.04385513]
[1724826451481,2.3362,2472.8,2472.7,0.04385513]
[1724826452041,0.06056805,2472.7,2472.3,7.37]
[1724826452242,2.39676805,2472.8,2472.3,7.37]
[1724826452843,0.06056805,2472.7,2472.3,7.37]
[1724826453081,2.338,2472.6,2472.0,7.37]
[1724826453294,0.06056805,2472.5,2472.0,7.37]
[1724826453443,2.39856805,2472.6,2472.0,7.37]
[1724826453844,3.15079603,2472.6,2472.0,7.37]
[1724826454478,3.15079603,2472.6,2472.1,0.55]
[1724826454671,4.0,2472.4,2472.1,0.55]
[1724826455665,4.0,2472.4,2472.1,2.8588]
[1724826455954,4.0,2472.4,2472.1,6.90385]
[1724826456153,4.0,2472.4,2472.2,1.427385]
[1724826456375,4.0,2472.4,2472.3,0.55]
[1724826456580,4.0,2472.4,2472.3,4.67569923]
[1724826456792,4.0,2472.4,2472.3,4.59481]
[1724826457142,0.06056805,2473.0,2472.5,2.271]
[1724826457393,0.42284633,2473.2,2472.6,0.63087118]
[1724826457681,0.42284633,2473.2,2472.6,4.67519118]
[1724826457848,0.42284633,2473.2,2472.6,5.7742713]
[1724826458648,2.3335,2473.1,2472.6,0.55]
[1724826458959,2.3335,2473.1,2472.4,4.04456]
[1724826458960,2.39406805,2473.1,2472.5,0.55]
[1724826459349,2.39406805,2473.1,2472.4,0.55]
[1724826459674,2.39406805,2473.1,2472.4,2.4684355]
[1724826460959,2.39406805,2473.1,2472.5,0.04395527]
[1724826461486,0.42284633,2473.2,2472.7,4.04404]
[1724826461690,2.3437,2473.4,2472.8,1.198944]
[1724826461691,2.40426805,2473.4,2472.8,1.198944]
[1724826461993,2.40426805,2473.4,2472.8,1.24313707]
[1724826461994,2.3437,2473.4,2472.8,1.24313707]
[1724826462158,2.3437,2473.4,2472.9,0.52871771]
[1724826462159,2.40426805,2473.4,2472.9,0.52871771]
[1724826462359,2.40426805,2473.4,2472.8,0.59419307]
[1724826462584,2.40426805,2473.4,2472.9,0.59418055]
[1724826462787,2.40426805,2473.4,2472.9,0.04418055]
[1724826463287,2.40426805,2473.4,2472.7,1.198956]
[1724826463454,2.40426805,2473.4,2473.0,0.04418055]
[1724826463654,2.40426805,2473.4,2472.7,1.198956]
[1724826463655,2.40426805,2473.4,2472.7,7.92]
[1724826464175,3.09461779,2473.4,2472.8,0.04418055]
[1724826466854,2.40426805,2473.4,2472.8,0.04418055]
[1724826467396,2.3437,2473.4,2472.8,0.04418055]
[1724826467965,2.3437,2473.4,2472.8,4.16902727]
[1724826468161,2.78440196,2473.6,2472.9,0.55]
[1724826468519,2.78440196,2473.6,2473.0,0.55276046]
[1724826468807,2.78440196,2473.6,2473.0,0.59675326]
[1724826469394,2.72383391,2473.6,2473.0,4.64033326]
[1724826469573,0.42283391,2473.6,2473.1,0.55]
[1724826469756,0.42283391,2473.6,2473.2,1.00424627]
[1724826469962,0.42283391,2473.6,2473.3,0.0439177]
[1724826470181,7.44,2474.1,2473.3,2.35095711]
[1724826470182,2.49966805,2474.0,2473.3,2.35095711]
[1724826470399,2.49966805,2474.0,2473.4,0.04148505]
[1724826470963,2.49966805,2474.0,2473.4,0.59148505]
[1724826472268,2.49966805,2474.0,2473.4,0.58993606]
[1724826473233,0.42282582,2474.1,2473.5,4.04284]
[1724826473370,0.42282582,2474.1,2473.6,1.01327761]
[1724826473572,0.42282582,2474.1,2473.6,0.55]
[1724826473883,0.42282582,2474.1,2473.7,0.0411958]
[1724826476069,2.36276805,2474.2,2473.7,0.12203773]
[1724826477414,2.36276805,2474.2,2473.7,0.0411958]
[1724826477573,4.07639541,2474.1,2473.7,0.0411958]
[1724826477924,2.3544,2473.9,2473.4,7.37]
[1724826478126,0.06056805,2473.8,2473.4,7.37]
[1724826478477,0.41369635,2474.0,2473.5,0.08085446]
[1724826478778,6.43079541,2474.2,2473.4,9.8405]
[1724826478975,2.3544,2474.1,2473.5,0.55]
[1724826479201,2.3544,2474.1,2473.4,7.37]
[1724826479202,0.70364759,2474.0,2473.4,7.37]
[1724826479388,2.3544,2473.9,2473.4,7.37]
[1724826479584,0.06056805,2473.8,2473.4,7.37]
[1724826479984,0.06056805,2473.8,2473.5,0.04093322]
[1724826480777,0.06056805,2474.0,2473.5,0.04093322]
[1724826480976,0.7097044,2474.0,2473.5,0.04093322]
[1724826485311,0.06056805,2474.0,2473.5,0.04093322]
[1724826485909,2.3188,2474.3,2473.5,6.42975598]
[1724826486102,2.3188,2474.3,2473.5,2.93698598]
[1724826486636,2.3188,2474.3,2473.5,4.37198558]
[1724826487438,2.3188,2474.3,2473.5,8.41482558]
[1724826487801,2.3188,2474.3,2473.5,4.37198558]
[1724826488536,2.37936805,2474.3,2473.5,8.41480558]
[1724826488731,2.37936805,2474.3,2473.6,1.98277256]
[1724826489032,2.3188,2474.3,2473.7,0.67154913]
[1724826489345,6.39519541,2474.3,2473.7,0.04070811]
[1724826489510,2.2689,2474.2,2473.7,0.04070811]
[1724826489831,5.003373,2474.1,2473.5,0.55]
[1724826490023,4.13696346,2474.1,2473.8,0.04070811]
[1724826490228,4.07639541,2473.9,2473.4,7.37]
[1724826490440,2.2689,2473.7,2473.4,7.37]
[1724826490614,0.06056805,2473.6,2473.4,7.37]
[1724826490822,0.06056805,2473.6,2473.1,2.2806]
[1724826491011,0.06056805,2473.6,2473.5,0.04079564]
[1724826491413,0.06056805,2473.6,2473.1,2.50866]
[1724826491617,0.06056805,2473.6,2473.5,0.04079564]
[1724826491854,0.06056805,2473.6,2473.1,2.2806]
[1724826492033,0.06056805,2473.6,2473.5,0.04079564]
[1724826492214,0.06056805,2473.6,2473.1,2.2806]
[1724826492417,0.06056805,2473.6,2473.5,0.04079564]
[1724826492637,0.06056805,2473.6,2473.1,7.693491]
[1724826492948,0.06056805,2473.9,2473.5,0.04109578]
[1724826493139,0.42285523,2474.1,2473.4,2.4954]
[1724826493457,0.48342328,2474.1,2473.5,0.08084884]
[1724826493759,0.48342328,2474.1,2473.5,0.67181955]
[1724826493760,0.42285523,2474.1,2473.5,0.67181955]
[1724826493946,0.42285523,2474.1,2473.6,0.72101796]
[1724826494126,0.42285523,2474.1,2473.7,0.55]
[1724826494320,0.48342328,2474.1,2473.7,0.55]
[1724826494533,0.48342328,2474.1,2473.8,0.04097071]
[1724826494918,0.48342328,2474.1,2473.7,0.55]
[1724826495117,0.48342328,2474.1,2473.4,2.4954]
[1724826495118,0.48342328,2474.1,2473.9,0.04092066]